Cogmind - Beta 15 @@@ ROGUE MODE // 2025.07.07 @ 11:10:43 Player: beans Result: Destroyed by G-67 Veteran with Plasma Rifle Performance ------------- Evolutions (4) 2000 Regions Visited (7) 1400 Robots Destroyed (165) 825 Value Destroyed (3122) 3122 Prototype IDs (2) 40 Alien Tech Used (0) 0 Bonus (156) 156 TOTAL SCORE: 7543 Bonus ------- High Alert Combat Kills 156 Cogmind --------- Core Integrity 0/850 Matter 2/300 Energy 100/100 System Corruption 14% Temperature Cool (12) Movement Core (150) Ox2 Location -6/Factory Parts ------- > --- POWER (1) -------- (None) > --- PROPULSION (3) --- (None) > --- UTILITY (5) ------ (None) > --- WEAPON (6) ------- Light Assault Rifle Light Assault Rifle Heavy Assault Rifle Autogun > --- INVENTORY (5) ---- Faulty Enhanced Autogun Peak State ------------ > --- POWER ------------ Light Nuclear Core > --- PROPULSION ------- Light Treads Light Treads > --- UTILITY ---------- Large Storage Unit Particle Charger > --- WEAPON ----------- Autogun Autogun Autogun Enhanced Autogun Enhanced Autogun Enhanced Autogun > --- INVENTORY -------- Core Shielding Hacking Suite Ion Cannon Ion Cannon Light Assault Rifle Light Assault Rifle Heavy Assault Rifle Heavy Assault Rifle Autogun Enhanced Autogun Grenade Launcher Heavy Missile Launcher Heavy Missile Launcher [Rating: 30] Favorites ----------- Power Light Ion Engine Engine Light Ion Engine Power Core Light Nuclear Core Propulsion Light Treads Treads Light Treads Leg Carbon-fiber Leg Utility Large Storage Unit Device Particle Charger Storage Large Storage Unit Hackware Hacking Suite Protection Core Shielding Weapon Enhanced Autogun Energy Gun Heavy EM Shotgun Energy Cannon Ion Cannon Ballistic Gun Enhanced Autogun Ballistic Cannon Advanced Assault Cannon Launcher Heavy Missile Launcher Build | -11 -10 -9 -8 -7 -7 -7 -6 ------- Run | Yrd Mat Mat Mat Fac Was Fac Fac Slots Evolved 8 | . . 2 2 2 . . 2 Power . | . . . . . . . . Propulsion 1 | . . . . . . . 1 Utility 3 | . . . . 2 . . 1 Weapon 4 | . . 2 2 . . . . Parts Attached 45 | 5 5 8 5 12 1 . 9 Power 7 | 1 . 2 2 . . . 2 Engine 5 | 1 . 2 1 . . . 1 Core 2 | . . . 1 . . . 1 Reactor . | . . . . . . . . Propulsion 6 | 2 . . 1 3 . . . Treads 3 | 2 . . 1 . . . . Leg 3 | . . . . 3 . . . Wheel . | . . . . . . . . Hover . | . . . . . . . . Flight . | . . . . . . . . Utility 5 | . 2 1 . 1 . . 1 Device 1 | . . 1 . . . . . Storage 1 | . 1 . . . . . . Processor . | . . . . . . . . Hackware 2 | . . . . 1 . . 1 Protection 1 | . 1 . . . . . . Artifact . | . . . . . . . . Weapon 27 | 2 3 5 2 8 1 . 6 Energy Gun 3 | . . . . 3 . . . Energy Cannon 3 | . . . 1 1 . . 1 Ballistic Gun 12 | 2 2 5 1 1 . . 1 Ballistic Cannon 4 | . . . . . . . 4 Launcher 5 | . 1 . . 3 1 . . Special Weapon . | . . . . . . . . Impact Weapon . | . . . . . . . . Slashing Weapon . | . . . . . . . . Piercing Weapon . | . . . . . . . . Special Melee Weapon . | . . . . . . . . Unidentified Prototypes 2 | . . 1 . 1 . . . Parts Lost 32 | . . 1 10 12 . 1 8 Power 3 | . . 1 1 . . . 1 Propulsion 6 | . . . 2 3 . 1 . Utility 4 | . . . 1 1 . . 2 Weapon 19 | . . . 6 8 . . 5 Highest Loss Streak 5 | . . 1 4 4 . 1 5 To Critical Strikes 2 | . . . 1 1 . . . Average Backups 8 | . 3 11 13 8 5 5 4 Power . | . . . . . . . . Propulsion . | . . . . . . . . Utility . | . . 1 2 . . . . Weapon 7 | . 3 9 11 8 5 5 4 Tool/Special . | . . . . . . . . Unused Backups 1 | . . . . . . . 1 Power . | . . . . . . . . Propulsion . | . . . . . . . . Utility . | . . . . . . . . Weapon 1 | . . . . . . . 1 Tool/Special . | . . . . . . . . Average Slot Usage (%) 64 | . 95 99 87 47 28 15 17 Engine 4 | . 14 10 2 . . . . Core 1 | . . . 4 . . . 2 Treads 11 | . 28 22 13 2 . . . Leg 1 | . . . . 3 7 5 . Device 2 | . . 5 6 . . . . Storage 7 | . 13 11 9 7 1 . . Hackware 3 | . . . . 6 7 7 4 Protection 3 | . 9 5 . 3 . . . Energy Cannon 1 | . . . 3 4 . . 3 Ballistic Gun 22 | . 26 43 48 7 7 2 . Launcher 1 | . 1 . . 7 4 . . Peak Build Rating 30 | 5 10 24 30 24 20 11 23 Average Rating 16 | 3 8 21 27 18 13 7 11 On Entrance 10 | . 5 10 24 13 16 11 4 Naked Turns 14 | . . . . . . . 14 Heaviest Build 49 | 5 30 42 49 41 38 4 26 Greatest Support 40 | 40 40 40 40 30 15 15 3 Greatest Overweight (x) 16 | . . 1 16 13 2 . 8 Average Overweight (x) . | . . . 1 2 . . 1 Largest Inventory Capacity 15 | 5 15 15 15 15 15 5 5 Average Capacity 12 | 5 14 15 15 15 6 5 5 Most Carried 15 | 5 6 14 15 13 5 5 5 Average Carried 8 | . 3 11 13 8 5 5 4 Final Capacity 15 | 5 15 15 15 15 5 5 5 Final Carried 13 | . 6 13 13 6 5 5 1 Class Distribution -------------------- 47% | Mutant 18% | Tank 18% | Gunner 14% | Executioner Dominant Class ---------------- Mutant | -10/Materials Gunner | -9/Materials Executioner | -8/Materials Tank | -7/Factory Mutant | -7/Waste Mutant | -7/Factory Mutant | -6/Factory Resources | -11 -10 -9 -8 -7 -7 -7 -6 ----------- Run | Yrd Mat Mat Mat Fac Was Fac Fac Matter Collected 4063 | 215 620 1642 1106 169 . . 311 Remotely . | . . . . . . . . Salvage Created 5098 | . 987 1931 1600 303 . . 277 Parts 363 | . 71 140 116 16 . . 20 Haulers Intercepted 7 | . 1 5 . 1 . . . Recyclers Shooed 8 | . 4 3 . . . . 1 Parts Field Recycled . | . . . . . . . . Retrieved Matter . | . . . . . . . . Parts Self-Destructed . | . . . . . . . . Prevented . | . . . . . . . . Kills | -11 -10 -9 -8 -7 -7 -7 -6 ------- Run | Yrd Mat Mat Mat Fac Was Fac Fac Combat Hostiles Destroyed 75 | . 7 29 26 9 . . 4 Guns 57 | . 7 29 19 2 . . . Cannons 11 | . . . 7 1 . . 3 AOE 6 | . . . . 6 . . . Classes Destroyed 15 | . 9 2 2 1 . . 1 Worker 25 | . 5 15 4 . . . 1 Builder 23 | . 8 7 5 1 . . 2 Tunneler 5 | . 2 1 1 . . . 1 Hauler 7 | . 1 5 . 1 . . . Recycler 15 | . 7 4 4 . . . . Mechanic 2 | . . . 2 . . . . Operator 5 | . 1 1 3 . . . . Watcher 8 | . 1 4 2 . . . 1 Swarmer 29 | . 3 17 9 . . . . Grunt 23 | . 4 6 11 2 . . . Brawler 1 | . . 1 . . . . . Sentry 13 | . . 5 5 2 . . 1 Hunter 3 | . . . 1 2 . . . Programmer 5 | . . . . 3 . . 2 Behemoth 1 | . . . . . . . 1 Best Kill Streak 10 | . 6 10 6 3 . . 2 Combat Bots Only 7 | . 3 7 5 2 . . 1 Max Kills in Single Turn 3 | . 1 2 3 3 . . 1 Gunslinging 1 | . . 1 1 . . . . Exploded 2 | . . . . 2 . . . Melee . | . . . . . . . . Uniques/NPCs Destroyed . | . . . . . . . . Combat | -11 -10 -9 -8 -7 -7 -7 -6 -------- Run | Yrd Mat Mat Mat Fac Was Fac Fac Hostile Shots Fired 580 | . 26 66 124 137 . 58 169 Missed 214 | . 12 18 35 48 . 29 72 Hits 366 | . 14 48 89 89 . 29 97 Melee 12 | . . . . . . . 12 Projectile 354 | . 14 48 89 89 . 29 85 Critical Strikes 18 | . . 1 8 4 . 4 1 Part Disruptions 2 | . . . . 1 . . 1 Damage Taken 5322 | . 182 485 1208 1343 . 361 1743 Core 1668 | . 25 43 143 317 . 289 851 Absorbed by Shields . | . . . . . . . . Redirected to Shielding 41 | . 3 1 . 37 . . . Core Remaining (%) 73 | 100 90 89 74 . . 13 . Volleys Fired 328 | . 71 100 70 41 1 . 45 Largest 6 | . 2 4 6 4 3 . 4 Hottest 164 | . 50 98 144 147 106 . 164 Shots Fired 989 | . 142 400 292 85 3 . 67 Gun 830 | . 131 400 259 39 1 . . Cannon 125 | . . . 33 25 . . 67 Launcher 34 | . 11 . . 21 2 . . Special . | . . . . . . . . Kinetic 862 | . 131 400 259 30 1 . 41 Thermal 84 | . . . 33 25 . . 26 Explosive 34 | . 11 . . 21 2 . . Electromagnetic 9 | . . . . 9 . . . Robot Hit Streak 13 | . 13 10 12 8 1 . 6 Robot Miss Streak 6 | . 4 6 5 4 1 . 3 Penetration Max . | . . . . . . . . Secondary Targets 14 | . 2 11 1 . . . . Max Gunslinging Chain 2 | . 1 2 1 . . . . Shots Hit Robots 498 | . 78 191 145 40 1 . 43 Core Hits 242 | . 42 78 68 35 . . 19 Critical Kills 4 | . 1 . 1 1 . . 1 Critical Parts Destroyed . | . . . . . . . . Critical Strikes 5 | . 1 . 1 1 1 . 1 Meltdown 1 | . . . . . . . 1 Destroy 4 | . 1 . 1 1 1 . . Melee Attacks . | . . . . . . . . Impact . | . . . . . . . . Slashing . | . . . . . . . . Piercing . | . . . . . . . . Sneak Attacks . | . . . . . . . . Combat Hostiles . | . . . . . . . . Follow-up Attacks . | . . . . . . . . Damage Inflicted 10344 | . 1332 3079 2840 1554 235 . 1304 Guns 6514 | . 977 3079 2115 324 19 . . Cannons 2146 | . . . 545 304 . . 1297 Explosions 1656 | . 355 . 177 908 216 . . Melee . | . . . . . . . . Ramming 28 | . . . 3 18 . . 7 Kinetic 7376 | . 977 3079 2115 258 19 . 928 Thermal 1395 | . . . 722 304 . . 369 Explosive 1479 | . 355 . . 908 216 . . Electromagnetic 66 | . . . . 66 . . . Impact . | . . . . . . . . Slashing . | . . . . . . . . Piercing . | . . . . . . . . Highest Corruption 14 | . . . . 4 4 9 14 Average Corruption 3 | . . . . 3 4 4 3 Corruption Purged . | . . . . . . . . Corruption Blocked . | . . . . . . . . Effects 32 | . . . . 10 6 4 12 Message Errors 6 | . . . . 3 2 . 1 Matter Fused 4 | . . . . 3 1 . . Heat Flow Errors 5 | . . . . . . 2 3 Energy Discharges 5 | . . . . 1 . . 4 Data Loss (minor) 8 | . . . . 2 2 2 2 Data Loss (major) 2 | . . . . 1 1 . . Misfires 1 | . . . . . . . 1 Alerts 1 | . . . . . . . 1 Overload Shots . | . . . . . . . . Overflow Damage 29 | . 8 . . 14 . . 7 Projectiles 7 | . . . . . . . 7 Explosions 22 | . 8 . . 14 . . . Melee . | . . . . . . . . Knockbacks 6 | . . . . . . . 6 Impact . | . . . . . . . . Kinetic 6 | . . . . . . . 6 Secondary . | . . . . . . . . Self-Inflicted Damage 158 | . 31 . . 124 . . 3 Shots 6 | . 2 . . 4 . . . Rammed 4 | . . . . 1 . . 3 Targets Rammed 16 | . . . 1 12 . . 3 Kicked 11 | . . . . 11 . . . Crushed 1 | . . . 1 . . . . Highest Temperature 422 | . 24 335 422 57 3 165 195 Average Temperature 79 | . 6 97 102 19 2 91 50 Received Heat Transfer 1002 | . 51 102 423 78 . 48 300 Effects 3 | . . 2 1 . . . . Shutdowns 1 | . . . 1 . . . . Energy Bleed 2 | . . 2 . . . . . Siege Activations . | . . . . . . . . Martial Activations . | . . . . . . . . Shielding Activations . | . . . . . . . . Robots Disrupted . | . . . . . . . . Combat Hostiles . | . . . . . . . . Robots Corrupted . | . . . . . . . . Combat Hostiles . | . . . . . . . . Parts Fried . | . . . . . . . . Impact Corruptions . | . . . . . . . . Robots Melted 1 | . . . . . . . 1 Combat Hostiles 1 | . . . . . . . 1 Parts Melted 4 | . . . 2 . . . 2 Heat Transferred 2037 | . . . 1001 481 . . 555 Parts Sabotaged . | . . . . . . . . Parts Stolen . | . . . . . . . . Parts Stripped . | . . . . . . . . Power Chain Reactions . | . . . . . . . . Alert | -11 -10 -9 -8 -7 -7 -7 -6 ------- Run | Yrd Mat Mat Mat Fac Was Fac Fac Maximum Alert Level 2 | . . 2 2 1 . . . Low Security (%) 58 | 100 100 45 2 25 100 100 100 Level 1 32 | . . 30 67 74 . . . Level 2 9 | . . 23 29 . . . . Level 3 . | . . . . . . . . Level 4 . | . . . . . . . . Level 5 . | . . . . . . . . High Security . | . . . . . . . . Max Security . | . . . . . . . . Peak Influence 662 | . 116 542 662 296 55 45 35 Initial 284 | . . 24 221 284 55 . 9 Average 158 | . 62 229 352 222 14 5 6 Influence Increases 2928 | . 377 953 874 452 13 60 199 Destroy 0b10 Robot/C 1500 | . 140 580 520 180 . . 80 Destroy 0b10 Robot/NC 450 | . 125 185 105 10 . . 25 Destroy Leader 420 | . 44 138 124 72 . . 42 Disable Machine 210 | . 45 . 60 90 . . 15 Destroy Structure 168 | . 23 5 20 100 13 . 7 Lose Combat Pursuer 180 | . . 45 45 . . 60 30 Influence Decreases 2921 | . 318 488 771 921 171 40 212 Entered New Map 795 | . . 35 303 343 103 . 11 Time Decay 1844 | . 318 443 368 458 68 40 149 Lost Part 282 | . . 10 100 120 . . 52 Squads Dispatched 19 | . 2 1 6 3 . 2 5 Investigation 1 | . . . . . . 1 . Extermination 5 | . . . . 2 . 1 2 Reinforcement 10 | . 2 1 5 1 . . 1 Assault 3 | . . . 1 . . . 2 Garrison . | . . . . . . . . Intercept . | . . . . . . . . Searches Triggered . | . . . . . . . . Construction Impeded 2 | . . . 1 . . . 1 Haulers Reinforced 1 | . . . . 1 . . . Active Scanning Responses . | . . . . . . . . Cargo Convoy Interrupts . | . . . . . . . . Stealth | -11 -10 -9 -8 -7 -7 -7 -6 --------- Run | Yrd Mat Mat Mat Fac Was Fac Fac Distress Signals 7 | . 1 2 2 . . . 2 Communications Jammed . | . . . . . . . . Distress Signals . | . . . . . . . . Times Spotted 127 | . 13 36 33 11 6 6 22 Peak Tracking Total 13 | . 4 7 7 2 6 4 13 Tactical Retreats 9 | . . 3 1 . 1 2 2 Traps | -11 -10 -9 -8 -7 -7 -7 -6 ------- Run | Yrd Mat Mat Mat Fac Was Fac Fac Traps Triggered 2 | . . . . 2 . . . Indirectly . | . . . . . . . . Trap Hack Attempts . | . . . . . . . . Triggered . | . . . . . . . . Disarmed . | . . . . . . . . Reprogrammed . | . . . . . . . . Reused . | . . . . . . . . Traps Extracted . | . . . . . . . . Installed . | . . . . . . . . Triggered . | . . . . . . . . Machines | -11 -10 -9 -8 -7 -7 -7 -6 ---------- Run | Yrd Mat Mat Mat Fac Was Fac Fac Machines Disabled 15 | . 4 . 4 6 . . 1 Max in Single Turn 3 | . 1 . 3 2 . . 1 Garrison Access 1 | . . . . . . . 1 Machines Repaired . | . . . . . . . . Machines Dismantled . | . . . . . . . . Machines Sabotaged . | . . . . . . . . Overloaded Fab Kills . | . . . . . . . . Hacking | -11 -10 -9 -8 -7 -7 -7 -6 --------- Run | Yrd Mat Mat Mat Fac Was Fac Fac Machines Accessed 3 | . . . . . . 2 1 Terminals . | . . . . . . . . Fabricators . | . . . . . . . . Repair Stations . | . . . . . . . . Recycling Units 2 | . . . . . . 2 . Scanalyzers . | . . . . . . . . Garrison Access 1 | . . . . . . . 1 Total Hacks 7 | . . . . . . 5 2 Successful 2 | . . . . . . 2 . Failed 5 | . . . . . . 3 2 Catastrophic . | . . . . . . . . Database Lockouts . | . . . . . . . . Manual . | . . . . . . . . Terminals . | . . . . . . . . Fabricators . | . . . . . . . . Repair Stations . | . . . . . . . . Recycling Units 5 | . . . . . . 5 . Scanalyzers . | . . . . . . . . Garrison Access 2 | . . . . . . . 2 Terminal Hacks . | . . . . . . . . Fabricator Hacks . | . . . . . . . . Repair Station Hacks . | . . . . . . . . Recycling Unit Hacks 2 | . . . . . . 2 . Retrieve Matter 2 | . . . . . . 2 . Scanalyzer . | . . . . . . . . Garrison Access Hacks . | . . . . . . . . Unauthorized Hacks . | . . . . . . . . Terminals . | . . . . . . . . Fabricators . | . . . . . . . . Repair Stations . | . . . . . . . . Recycling Units . | . . . . . . . . Scanalyzers . | . . . . . . . . Garrison Access . | . . . . . . . . Data Cores Recovered 1 | . . 1 . . . . . Used . | . . . . . . . . Hacking Detections 2 | . . . . . . 1 1 Full Trace Events 1 | . . . . . . 1 . Feedback Events . | . . . . . . . . Feedback Blocked . | . . . . . . . . Robot Schematics Acquired . | . . . . . . . . Robots Built . | . . . . . . . . Authchips . | . . . . . . . . Time . | . . . . . . . . Total Robot Build Rating . | . . . . . . . . Part Schematics Acquired . | . . . . . . . . Parts Built . | . . . . . . . . Authchips . | . . . . . . . . Time . | . . . . . . . . Total Part Build Rating . | . . . . . . . . Parts Repaired . | . . . . . . . . Time . | . . . . . . . . Parts Recycled . | . . . . . . . . Recycled Matter . | . . . . . . . . Retrieved Matter . | . . . . . . . . Retrieved Components . | . . . . . . . . Parts Scanalyzed . | . . . . . . . . Part Schematics Acquired . | . . . . . . . . Parts Damaged . | . . . . . . . . Bothacking | -11 -10 -9 -8 -7 -7 -7 -6 ------------ Run | Yrd Mat Mat Mat Fac Was Fac Fac Used RIF Installer . | . . . . . . . . Robots Hacked . | . . . . . . . . Non-combat . | . . . . . . . . Combat . | . . . . . . . . Robot Hacks Applied . | . . . . . . . . Relay Couplers Released 4 | . . . . . . . 4 Machine Destruction 4 | . . . . . . . 4 Fabnet Peak Effective % . | . . . . . . . . Robots Rewired . | . . . . . . . . Allies Hacked . | . . . . . . . . Hacks Repelled . | . . . . . . . . Allies | -11 -10 -9 -8 -7 -7 -7 -6 -------- Run | Yrd Mat Mat Mat Fac Was Fac Fac Total Allies . | . . . . . . . . Largest Group . | . . . . . . . . Highest-Rated Group . | . . . . . . . . Highest-Rated Ally . | . . . . . . . . Total Orders . | . . . . . . . . Ally Attacks . | . . . . . . . . Total Damage . | . . . . . . . . Kills . | . . . . . . . . Allies Corrupted . | . . . . . . . . Allies Melted . | . . . . . . . . Intel | -11 -10 -9 -8 -7 -7 -7 -6 ------- Run | Yrd Mat Mat Mat Fac Was Fac Fac Active Infowar (turns) . | . . . . . . . . Robot Analysis Total . | . . . . . . . . Derelict Logs Recovered . | . . . . . . . . Drone Launches . | . . . . . . . . Drone Recoveries . | . . . . . . . . Exploration | -11 -10 -9 -8 -7 -7 -7 -6 ------------- Run | Yrd Mat Mat Mat Fac Was Fac Fac Turns Passed 5550 | 59 849 1143 851 1146 297 518 687 Spaces Moved 2750 | 46 403 518 249 340 213 526 455 Core 745 | 21 . . 3 48 . 218 455 Treads 1346 | 25 403 518 246 154 . . . Legs 659 | . . . . 138 213 308 . Wheels . | . . . . . . . . Hover . | . . . . . . . . Flight . | . . . . . . . . Fastest Speed 50 | 50 160 160 225 120 120 50 50 Average Speed 162 | 109 160 170 257 268 136 90 122 Slowest Speed 850 | 160 160 240 850 700 260 120 450 Overloaded Moves . | . . . . . . . . Propulsion Burnouts . | . . . . . . . . Robots Hopped . | . . . . . . . . Potential Cave-ins . | . . . . . . . . Cave-ins Triggered . | . . . . . . . . Exploration Rate (%) 33 | 4 56 50 34 11 83 15 14 Regions Visited 7 Branch Regions . Pre-discovered Areas . | . . . . . . . . Known Exits Taken . | . . . . . . . . Unknown Exits Taken 5 | 1 1 1 1 . . 1 . Scrap Searched . | . . . . . . . . Spaces Dug . | . . . . . . . . Terrain Destroyed 213 | . 23 . 12 150 22 . 6 Melee . | . . . . . . . . Projectile 13 | . . . 7 . . . 6 AOE 200 | . 23 . 5 150 22 . . Terrain Rammed . | . . . . . . . . Walls Destroyed . | . . . . . . . . Machines Disabled . | . . . . . . . . Actions | -11 -10 -9 -8 -7 -7 -7 -6 --------- Run | Yrd Mat Mat Mat Fac Was Fac Fac Total 3360 | 55 490 659 365 483 219 565 524 Wait 173 | . 4 22 30 68 2 39 8 Move 2744 | 45 402 517 248 340 212 525 455 Hop . | . . . . . . . . Pick Up 37 | 5 8 11 6 7 . . . Fast Attach 8 | . . . 1 . . . 7 Attach 33 | 5 2 3 4 14 1 . 4 Detach . | . . . . . . . . Swap 12 | . 3 5 3 . . . 1 Drop 9 | . . 1 2 1 3 1 1 Fire 328 | . 71 100 70 41 1 . 45 Melee . | . . . . . . . . Ram 4 | . . . . 1 . . 3 Kick 11 | . . . . 11 . . . Crush 1 | . . . 1 . . . . Escape Stasis . | . . . . . . . . Rewire . | . . . . . . . . Trap . | . . . . . . . . Miscellaneous . | . . . . . . . . Route ------- -11/Scrapyard -10/Materials (discovered 4 exits: [*Mat x2] / [*Min] / [*Sub]) -9/Materials (discovered 2 exits: [*Mat] / [*Min]) -8/Materials -7/Factory -7/Waste -7/Factory -6/Factory History --------- Turn | Location | Event 5 | -11/Scrapyard | Discovered new exit (range 14) 60 | -11/Scrapyard | Entered Materials 290 | -10/Materials | Discovered new exit (range 14) 340 | -10/Materials | Build established: Mutant 512 | -10/Materials | Discovered new exit (range 13) 650 | -10/Materials | Discovered new exit (range 15) 775 | -10/Materials | Discovered new exit (range 16) 909 | -10/Materials | Entered another Materials area 909 | -9/Materials | Evolved 2 slots: Weapon x2 1191 | -9/Materials | Discovered new exit (range 14) 1196 | -9/Materials | Build established: Tank 1400 | -9/Materials | Destroyed 7 combat bots 1737 | -9/Materials | Build established: Gunner 1897 | -9/Materials | Discovered new exit (range 15) 2052 | -9/Materials | Entered another Materials area 2052 | -8/Materials | Evolved 2 slots: Weapon x2 2355 | -8/Materials | Build established: Executioner 2722 | -8/Materials | Lost 4 parts (1p1n1u1w) 2852 | -8/Materials | First assault squad dispatched 2896 | -8/Materials | Discovered new exit (range 3) 2903 | -8/Materials | Entered Factory 2903 | -7/Factory | Evolved 2 slots: Utility x2 2933 | -7/Factory | Lost 3 parts (3w) 3236 | -7/Factory | Build established: Tank 3484 | -7/Factory | Lost 3 parts (1u2w) 3759 | -7/Factory | Lost 4 parts (2n2w) 4022 | -7/Factory | Build established: Mutant 4049 | -7/Factory | Sucked down chute 4049 | -7/Factory | Entered Waste 4089 | -7/Waste | Spotted C-40 Crusher 4097 | -7/Waste | Spotted C-40 Crusher 4112 | -7/Waste | Spotted C-40 Crusher 4151 | -7/Waste | Spotted C-40 Crusher 4162 | -7/Waste | Spotted C-40 Crusher 4209 | -7/Waste | Spotted C-40 Crusher 4312 | -7/Waste | Discovered new exit (range 13) 4346 | -7/Waste | Entered Factory 4715 | -7/Factory | Core integrity fell below 50% 4852 | -7/Factory | Core integrity fell below 20% 4861 | -7/Factory | Discovered new exit (range 6) 4864 | -7/Factory | Entered another Factory area 4864 | -6/Factory | Evolved 2 slots: Propulsion x1, Utility x1 5414 | -6/Factory | Spotted B-75 Beast 5425 | -6/Factory | Core integrity fell below 50% 5449 | -6/Factory | Destroyed B-75 Beast 5513 | -6/Factory | System corruption reached 10% 5514 | -6/Factory | Core integrity fell below 20% 5543 | -6/Factory | Lost 5 parts (1u4w) 5551 | -6/Factory | Destroyed by G-67 Veteran with Plasma Rifle Last Messages --------------- G-67 Veteran knocked back. K-01 Serf collects debris. Adv. Assault Cannon destroyed. System corrupted by crushing effect (+2). Magnetic Acceleration Cannon destroyed. Imp. Hacking Suite destroyed. System corrupted by crushing effect (+4). Adv. Assault Cannon destroyed. Critical hit (Burn: +37). Adv. Assault Cannon destroyed. System corrupted by crushing effect (+5). M-28 Smith repairs G-67 Veteran. Acquired 1 matter. System corrupted: Energy discharge (-23). W-25 Informer sends out distress signal. Slammed into K-01 Serf. C-30 ARC bursts open, deploying its payload. B-48 Gladiator unfolds itself. L-41 Fighter unfolds itself. I-36 Angel unfolds itself. Map ----- +----------------------------------------------------+ | ?????????????????????????????????????????????????? | | ?????????????????????????????????????????????????? | | ?????????????????????????????????????????????????? | | ?????????????????????????????????????????????????? | | ?????????????????????????????????????????????????? | | ?????????????????????????????????????????????????? | | ?????????????????????????????????????????????????? | | ?????????????????????????????????????????????????? | | ?????????????????????????????????????????????????? | | ????????????????????? ?????????????????????????? | | ????????????????????? ???????????????????????? | | ????????????????????# u #??????????????????????? | | ????????????????????# #??????????????????????? | | ????????????????????# #??????????????????????? | | ??????????????????"?# #??????????????????????? | | ??????????????????? # #??????????????????????? | | ??????????????????? # #??????????????????????? | | ????????????????????/R #??????????????????????? | | ????????????????????# #??????????????????????? | | ????????????????????#R #?????????? ??????????? | | ????????????????????# w#####+### "??????????? | | ????????????????????# "??????????? | | ??????############### "??????????? | | ??????# +g gg k ""?????????? | | ??????# ##### ????????? | | ??????# #???# @ ????????? | | ??????# " " #???###########+###??????????????? | | ??????# " " #????????????????????????????????? | | ??????#!!! " " #????????????????????????????????? | | ??????#!!! " " #????????????????????????????????? | | ??????#!!! " " #????????????????????????????????? | | ####### " " #????????????????????????????????? | | %+" " " #????????????????????????????????? | | ##### " " #????????????????????????????????? | | #???# " " #????????????????????????????????? | | #???# #????????????????????????????????? | | #???# #????????????????????????????????? | | #???# #????????????????????????????????? | | ##########/####????????????????????????????????? | | +????????????????????????????????? | | #????????????????????????????????? | | """ +????????????????????????????????? | | """ #????????????????????????????????? | | """ #????????????????????????????????? | | " ###### #????????????????????????????????? | | "" #????? #????????????????????????????????? | | ]] ##???? #????????????????????????????????? | | ]] !%"##????#????????????????????????????????? | | !%!% #?????????????????????????????????????? | | !% #?????????????????????????????????????? | +----------------------------------------------------+ Best States ------------- Heat Dissipation 37 Energy Generation 18 Energy Capacity 265 Matter Stores 300 Matter Capacity 300 Sight Range 16 Terrain Scan Density 10 Core Shielding 20 Evasion (%) 55 Recoil Reduction 2 Particle Charging 15 Offensive Hacking 12 Item Schematics ----------------- None Robot Schematics ------------------ None Fabricated ------------ Nothing Repaired ---------- Nothing Alien Tech Used ----------------- None Achievements -------------- None Challenges ------------ None Game ------ Seed TargetSmartManipulator Manual? 0 Play Time 00:37:53 Cumulative 41.8 hours Start 2025.07.07 @ 10:23:35 End 2025.07.07 @ 11:10:43 Sessions 1 Manual Loads 0 Difficulty Rogue Special Mode None Game No. 196 Rogue 196 Adventurer 0 Explorer 0 Win Type - Total 0 Types 0/0/0/0/0/0/0/0/0/0 Lore% 31 Gallery% 25 Achievement% 22 Wizard Run 0 Options --------- Layout 2 ASCII 0 Keyboard 0 Movement Mouse Keybinds 0 Fullscreen 1 Font 24/Smallcaps Map View 50x44 Zoom Use 0% Tactical HUD 0 Map Filters NONE Filters NONE Steam 1 RUN: 361fb862-c13d-4d2d-ae03-6fad0b4dfb13